fUSD/lending_fUSD_20251128
["ID","MTS","AMOUNT","RATE_DAILY","PERIOD"]
[395013036,1764329447650,-250.0,0.0003,120]
[395013037,1764329447660,-179.0,0.00030205,14]
[395013038,1764329447669,-500.0,0.00030467,5]
[395013039,1764329447679,-813.92,0.0003078,2]
[395013040,1764329447688,-173.62435858,0.00030785,2]
[395013041,1764329447700,-1631.0,0.000309,2]
[395013042,1764329447711,-1000.0,0.00031015,5]
[395013043,1764329447720,-7697.7417998,0.00031017,2]
[395013044,1764329447729,-12264.4801456,0.00031034,3]
[395013045,1764329447739,-7193.0837215,0.00031044,2]
[395013046,1764329447748,-163.99,0.000311,2]
[395013047,1764329447757,-341.64085491,0.000311,2]
[395013048,1764329447767,-12264.4801456,0.00031109,3]
[395013049,1764329447776,-24547.9238603,0.00031119,2]
[395013050,1764329447786,-2552.0,0.0003125,5]
[395013051,1764329447795,-12264.4801456,0.0003125,3]
[395013052,1764329447804,-513.50198392,0.00031333,30]
[395013053,1764329447814,-151.13204189,0.00031438,7]
[395013054,1764329447823,-150.0,0.00031438,7]
[395013055,1764329447832,-150.0,0.00031438,7]
[395013056,1764329447841,-150.0,0.00031438,7]
[395013057,1764329447850,-150.20105667,0.00031438,7]
[395013058,1764329447859,-150.0,0.00031438,7]
[395013059,1764329447869,-150.0,0.00031438,7]
[395013060,1764329447878,-150.0,0.00031438,7]
[395013061,1764329447887,-188.24053026,0.00031438,7]
[395013062,1764329447896,-150.15474629,0.00031438,7]
[395013063,1764329447906,-150.38279067,0.00031438,7]
[395013064,1764329447915,-150.0,0.00031438,7]
[395013065,1764329447924,-179.0,0.00031716,14]
[395013066,1764329447933,-150.0,0.00031729,7]
[395013067,1764329447943,-150.0,0.00031788,7]
[395013068,1764329447953,-813.92,0.00031818,2]
[395013069,1764329447962,-150.0,0.00031875,7]
[395013070,1764329447971,-1000.0,0.0003199,2]
[395013071,1764329447981,-269.60030883,0.00032,120]
[395013072,1764329447990,-237.15203659,0.00032,120]
[395013073,1764329447999,-181.77871934,0.00032,120]
[395013074,1764329448008,-166.03540197,0.00032,120]
[395013075,1764329448018,-202.0789941,0.00032,120]
[395013076,1764329448027,-201.62840347,0.00032,120]
[395013077,1764329448036,-183.30538817,0.00032,120]
[395013078,1764329448046,-254.91945093,0.00032,120]
[395013079,1764329448055,-177.05174753,0.00032,120]
[395013080,1764329448065,-200.0,0.00032,120]
[395013081,1764329448075,-150.0,0.00032021,7]
[395013082,1764329448085,-150.0,0.00032021,7]
[395013083,1764329448095,-150.0,0.00032137,7]
[395013084,1764329448104,-150.0,0.00032137,7]
[395013085,1764329448114,-150.0,0.00032137,7]
[395013086,1764329448125,-341.64085487,0.00032189,2]
[395013087,1764329448134,-351.51,0.00032311,120]
[395013088,1764329448143,-150.0,0.00032312,7]
[395013089,1764329448152,-150.0,0.00032312,7]
[395013090,1764329448161,-150.0,0.00032486,7]
[395013091,1764329448172,-150.0,0.00032603,7]
[395013092,1764329448182,-150.0,0.00032603,7]
[395013093,1764329448192,-150.0,0.00032748,7]
[395013094,1764329448205,-256.30201701,0.00032777,22]
[395013095,1764329448214,-12264.4801456,0.00032792,3]
[395013096,1764329448223,-173.62435858,0.00032808,2]
[395013097,1764329448233,-150.0,0.00032836,7]
[395013098,1764329448242,-150.0,0.00032836,7]
[395013099,1764329448251,-150.0,0.00032836,7]
[395013100,1764329448261,-24528.9602911,0.00032867,3]
[395013101,1764329448271,-250.0,0.00032877,12]
[395013102,1764329448280,-158.849782,0.00032877,31]
[395013103,1764329448291,-151.0,0.00032877,31]
[395013104,1764329448300,-151.0,0.00032877,31]
[395013105,1764329448310,-151.000018,0.00032877,31]
[395013106,1764329448320,-151.0,0.00032877,31]
[395013107,1764329448330,-151.0,0.00032877,31]
[395013108,1764329448339,-151.0,0.00032877,31]
[395013109,1764329448349,-151.0,0.00032877,31]
[395013110,1764329448358,-247.207849,0.00032877,31]
[395013111,1764329448367,-151.0,0.00032877,31]
[395013112,1764329448377,-151.0,0.00032877,31]
[395013113,1764329448387,-151.0,0.00032877,31]
[395013114,1764329448396,-151.0,0.00032877,31]
[395013115,1764329448405,-178.31561085,0.00032877,31]
[395013116,1764329448415,-168.481168,0.00032877,31]
[395013117,1764329448424,-328.848986,0.00032877,31]
[395013118,1764329448433,-328.848986,0.00032877,31]
[395013119,1764329448443,-328.848986,0.00032877,31]
[395013120,1764329448453,-328.848986,0.00032877,31]
[395013121,1764329448464,-328.848986,0.00032877,31]
[395013122,1764329448473,-328.848986,0.00032877,31]
[395013123,1764329448483,-328.848986,0.00032877,31]
[395013124,1764329448492,-328.848986,0.00032877,31]
[395013125,1764329448502,-328.848986,0.00032877,31]
[395013126,1764329448510,-328.848986,0.00032877,31]
[395013127,1764329448520,-328.848986,0.00032877,31]
[395013128,1764329448529,-328.848986,0.00032877,31]
[395013129,1764329448539,-328.848986,0.00032877,31]
[395013130,1764329448556,-328.848986,0.00032877,31]
[395013131,1764329448576,-328.848986,0.00032877,31]
[395013132,1764329448586,-328.848986,0.00032877,31]
[395013133,1764329448596,-328.848986,0.00032877,31]
[395013134,1764329448605,-328.848986,0.00032877,31]
[395013135,1764329448615,-328.848986,0.00032877,31]
[395013136,1764329448624,-328.848981,0.00032877,31]
[395013137,1764329448633,-217.18995,0.00032877,31]
[395013138,1764329448642,-551.072475,0.00032877,31]
[395013139,1764329448654,-551.072475,0.00032877,31]
[395013140,1764329448663,-551.072475,0.00032877,31]
[395013141,1764329448672,-551.072475,0.00032877,31]
[395013142,1764329448681,-551.072475,0.00032877,31]
[395013143,1764329448691,-551.072475,0.00032877,31]
[395013144,1764329448700,-551.072475,0.00032877,31]
[395013145,1764329448709,-551.072475,0.00032877,31]
[395013146,1764329448719,-551.072475,0.00032877,31]
[395013147,1764329448729,-551.072475,0.00032877,31]
[395013148,1764329448739,-551.072475,0.00032877,31]
[395013149,1764329448748,-551.072475,0.00032877,31]
[395013150,1764329448758,-551.072475,0.00032877,31]
[395013151,1764329448767,-551.072475,0.00032877,31]
[395013152,1764329448776,-551.072475,0.00032877,31]
[395013153,1764329448785,-551.072475,0.00032877,31]
[395013154,1764329448794,-551.072475,0.00032877,31]
[395013155,1764329448804,-551.072475,0.00032877,31]
[395013156,1764329448814,-551.072475,0.00032877,31]
[395013157,1764329448823,-551.07248,0.00032877,31]
[395013158,1764329448832,-185.292937,0.00032877,31]
[395013159,1764329448842,-151.0,0.00032877,31]
[395013160,1764329448851,-151.0,0.00032877,31]
[395013161,1764329448860,-151.0,0.00032877,31]
[395013162,1764329448869,-166.688773,0.00032877,31]
[395013163,1764329448879,-151.0,0.00032877,31]
[395013164,1764329448888,-151.0,0.00032877,31]
[395013165,1764329448897,-151.0,0.00032877,31]
[395013166,1764329448906,-151.0,0.00032877,31]
[395013167,1764329448916,-151.0,0.00032877,31]
[395013168,1764329448926,-151.0,0.00032877,31]
[395013169,1764329448935,-151.0,0.00032877,31]
[395013170,1764329448944,-151.0,0.00032877,31]
[395013171,1764329448955,-217.865845,0.00032877,31]
[395013172,1764329448964,-151.0,0.00032877,31]
[395013173,1764329448973,-151.0,0.00032877,31]
[395013174,1764329448983,-151.0,0.00032877,31]
[395013175,1764329448992,-151.0,0.00032877,31]
[395013176,1764329449002,-151.0,0.00032877,31]
[395013177,1764329449011,-266.72175,0.00032877,31]
[395013178,1764329449020,-151.0,0.00032877,31]
[395013179,1764329449030,-151.0,0.00032877,31]
[395013180,1764329449039,-151.0,0.00032877,31]
[395013181,1764329449049,-151.943372,0.00032877,31]
[395013182,1764329449058,-151.0,0.00032877,10]
[395013183,1764329449067,-151.0,0.00032877,10]
[395013184,1764329449077,-151.0,0.00032877,10]
[395013185,1764329449087,-151.0,0.00032877,10]
[395013186,1764329449098,-151.0,0.00032877,10]
[395013187,1764329449107,-151.0,0.00032877,10]
[395013188,1764329449116,-151.0,0.00032877,10]
[395013189,1764329449126,-151.0,0.00032877,10]
[395013190,1764329449135,-151.0,0.00032877,10]
[395013191,1764329449144,-151.0,0.00032877,10]
[395013192,1764329449154,-279.907954,0.00032877,10]
[395013193,1764329449164,-151.0,0.00032877,31]
[395013194,1764329449173,-151.0,0.00032877,31]
[395013195,1764329449183,-177.050866,0.00032877,31]
[395013196,1764329449192,-151.0,0.00032877,31]
[395013197,1764329449201,-181.496008,0.00032877,31]
[395013198,1764329449210,-151.0,0.00032877,31]
[395013199,1764329449219,-151.0,0.00032877,31]
[395013200,1764329449228,-151.0,0.00032877,31]
[395013201,1764329449237,-151.0,0.00032877,31]
[395013202,1764329449247,-151.0,0.00032877,30]
[395013203,1764329449256,-151.0,0.00032877,31]
[395013204,1764329449266,-151.0,0.00032877,30]
[395013205,1764329449275,-151.0,0.00032877,30]
[395013206,1764329449285,-151.0,0.00032877,31]
[395013207,1764329449294,-178.647037,0.00032877,30]
[395013208,1764329449304,-151.0,0.00032877,31]
[395013209,1764329449313,-151.0,0.00032877,31]
[395013210,1764329449323,-151.0,0.00032877,31]
[395013211,1764329449332,-234.84207,0.00032877,31]
[395013212,1764329449341,-151.0,0.00032877,31]
[395013213,1764329449350,-151.0,0.00032877,31]
[395013214,1764329449359,-161.189249,0.00032877,31]
[395013215,1764329449369,-195.88883,0.00032877,31]
[395013216,1764329449378,-151.0,0.00032877,31]
[395013217,1764329449387,-151.0,0.00032877,31]
[395013218,1764329449397,-151.0,0.00032877,31]
[395013219,1764329449406,-151.0,0.00032877,31]
[395013220,1764329449415,-151.0,0.00032877,31]
[395013221,1764329449541,-151.0,0.00032877,31]
[395013222,1764329449551,-151.0,0.00032877,31]
[395013223,1764329449565,-151.0,0.00032877,31]
[395013224,1764329449574,-151.0,0.00032877,31]
[395013225,1764329449583,-294.599844,0.00032877,31]
[395013226,1764329449592,-151.0,0.00032877,31]
[395013227,1764329449602,-151.0,0.00032877,31]
[395013228,1764329449611,-151.0,0.00032877,31]
[395013229,1764329449620,-151.0,0.00032877,31]
[395013230,1764329449629,-151.0,0.00032877,31]
[395013231,1764329449638,-151.0,0.00032877,31]
[395013232,1764329449647,-151.0,0.00032877,31]
[395013233,1764329449656,-151.0,0.00032877,31]
[395013234,1764329449665,-151.0,0.00032877,31]
[395013235,1764329449674,-151.0,0.00032877,31]
[395013236,1764329449683,-151.0,0.00032877,31]
[395013237,1764329449693,-288.157051,0.00032877,31]
[395013238,1764329449703,-151.0,0.00032877,31]
[395013239,1764329449713,-151.0,0.00032877,31]
[395013240,1764329449722,-163.969515,0.00032877,31]
[395013241,1764329449731,-155.256369,0.00032877,31]
[395013242,1764329449740,-151.0,0.00032877,31]
[395013243,1764329449749,-151.0,0.00032877,31]
[395013244,1764329449758,-151.0,0.00032877,31]
[395013245,1764329449767,-151.0,0.00032877,31]
[395013246,1764329449776,-151.0,0.00032877,31]
[395013247,1764329449785,-151.0,0.00032877,31]
[395013248,1764329449794,-178.0,0.00032877,31]
[395013249,1764329449804,-151.0,0.00032877,31]
[395013250,1764329449812,-166.777469,0.00032877,31]
[395013251,1764329449821,-151.0,0.00032877,31]
[395013252,1764329449831,-151.0,0.00032877,31]
[395013253,1764329449840,-151.0,0.00032877,31]
[395013254,1764329449849,-151.0,0.00032877,31]
[395013255,1764329449858,-151.0,0.00032877,31]
[395013256,1764329449867,-249.832491,0.00032877,31]
[395013257,1764329449876,-151.0,0.00032877,31]
[395013258,1764329449885,-171.2319,0.00032877,31]
[395013259,1764329449894,-151.0,0.00032877,31]
[395013260,1764329449903,-151.000012,0.00032877,31]
[395013261,1764329449913,-561.241628,0.00032877,15]
[395013262,1764329449922,-561.241628,0.00032877,15]
[395013263,1764329449931,-561.241628,0.00032877,15]
[395013264,1764329449940,-561.241628,0.00032877,15]
[395013265,1764329449949,-561.241628,0.00032877,15]
[395013266,1764329449959,-561.241628,0.00032877,15]
[395013267,1764329449968,-561.241628,0.00032877,15]
[395013268,1764329449977,-561.241628,0.00032877,15]
[395013269,1764329449986,-561.241628,0.00032877,15]
[395013270,1764329449995,-561.241628,0.00032877,15]
[395013271,1764329450005,-561.241628,0.00032877,15]
[395013272,1764329450014,-561.241628,0.00032877,15]
[395013273,1764329450023,-561.241628,0.00032877,15]
[395013274,1764329450031,-561.241628,0.00032877,15]
[395013275,1764329450040,-561.241628,0.00032877,15]
[395013276,1764329450049,-561.241628,0.00032877,15]
[395013277,1764329450059,-561.241628,0.00032877,15]
[395013278,1764329450067,-561.241628,0.00032877,15]
[395013279,1764329450077,-561.241628,0.00032877,15]
[395013280,1764329450087,-561.241638,0.00032877,15]
[395013281,1764329450097,-151.0,0.00032877,31]
[395013282,1764329450106,-151.0,0.00032877,31]
[395013283,1764329450115,-151.0,0.00032877,31]
[395013284,1764329450124,-151.0,0.00032877,31]
[395013285,1764329450133,-151.0,0.00032877,31]
[395013286,1764329450142,-151.0,0.00032877,31]
[395013287,1764329450152,-151.0,0.00032877,31]
[395013288,1764329450161,-266.263664,0.00032877,31]
[395013289,1764329450170,-151.0,0.00032877,31]
[395013290,1764329450179,-151.0,0.00032877,31]
[395013291,1764329450188,-151.0,0.00032877,31]
[395013292,1764329450198,-151.0,0.00032877,31]
[395013293,1764329450206,-151.0,0.00032877,31]
[395013294,1764329450215,-151.0,0.00032877,31]
[395013295,1764329450224,-151.0,0.00032877,31]
[395013296,1764329450233,-151.0,0.00032877,31]
[395013297,1764329450242,-151.0,0.00032877,31]
[395013298,1764329450251,-280.816671,0.00032877,31]
[395013299,1764329450260,-161.576432,0.00032877,31]
[395013300,1764329450269,-157.926211,0.00032877,31]
[395013301,1764329450279,-199.283824,0.00032877,31]
[395013302,1764329450288,-151.0,0.00032877,31]
[395013303,1764329450297,-151.0,0.00032877,31]
[395013304,1764329450307,-151.0,0.00032877,31]
[395013305,1764329450316,-169.0049,0.00032877,31]
[395013306,1764329450325,-151.0,0.00032877,31]
[395013307,1764329450335,-151.0,0.00032877,31]
[395013308,1764329450345,-151.0,0.00032877,31]
[395013309,1764329450354,-151.0,0.00032877,31]
[395013310,1764329450364,-151.3531,0.00032877,31]
[395013311,1764329450373,-151.0,0.00032877,31]
[395013312,1764329450382,-151.0,0.00032877,31]
[395013313,1764329450392,-151.0,0.00032877,31]
[395013314,1764329450401,-151.0,0.00032877,31]
[395013315,1764329450410,-151.0,0.00032877,31]
[395013316,1764329450420,-151.0,0.00032877,31]
[395013317,1764329450429,-151.0,0.00032877,31]
[395013318,1764329450439,-151.0,0.00032877,31]
[395013319,1764329450448,-173.849424,0.00032877,31]
[395013320,1764329450458,-268.19222078,0.00032877,7]
[395013321,1764329450467,-150.0,0.00032894,7]
[395013322,1764329450476,-269.60030883,0.00033,120]
[395013323,1764329450485,-237.15203659,0.00033,120]
[395013324,1764329450495,-181.77871934,0.00033,120]
[395013325,1764329450504,-166.03540197,0.00033,120]
[395013326,1764329450513,-201.62840347,0.00033,120]
[395013327,1764329450523,-183.30538817,0.00033,120]
[395013328,1764329450532,-254.91945093,0.00033,120]
[395013329,1764329450541,-177.05174753,0.00033,120]
[395013330,1764329450550,-300.0,0.00033082,7]
[395013331,1764329450564,-450.0,0.00033082,7]
[395013332,1764329450573,-508.75,0.00033165,2]
[395013333,1764329450583,-150.0,0.00033185,7]
[395013334,1764329450593,-150.0,0.00033185,7]
[395013335,1764329450604,-150.0,0.00033185,7]
[395013336,1764329450613,-150.0,0.00033185,7]
[395013337,1764329450622,-341.64085487,0.00033278,2]
[395013338,1764329450633,-150.0,0.00033476,7]
[395013339,1764329450643,-150.0,0.00033534,7]
[395013340,1764329450653,-150.0,0.00033534,7]
[395013341,1764329450662,-150.0,0.00033534,7]
[395013342,1764329450672,-150.0,0.00033622,7]
[395013343,1764329450681,-150.0,0.0003367,2]
[395013344,1764329450690,-256.30201701,0.0003368,24]
[395013345,1764329450699,-150.0,0.00033688,2]
[395013346,1764329450709,-164.71328149,0.00033726,30]
[395013347,1764329450718,-186.8,0.00033737,2]
[395013348,1764329450727,-150.0,0.00033767,7]
[395013349,1764329450736,-150.0,0.00033767,7]
[395013350,1764329450744,-150.0,0.00033884,7]
[395013351,1764329450754,-307.19930022,0.0003389,2]
[395013352,1764329450763,-269.60030883,0.000339,120]
[395013353,1764329450772,-237.15203659,0.000339,120]
[395013354,1764329450781,-181.77871934,0.000339,120]
[395013355,1764329450790,-166.03540197,0.000339,120]
[395013356,1764329450799,-201.62840347,0.000339,120]
[395013357,1764329450808,-183.30538817,0.000339,120]
[395013358,1764329450817,-254.91945093,0.000339,120]
[395013359,1764329450826,-152.79595564,0.000339,6]
[395013360,1764329450835,-12264.4801456,0.00033929,3]
[395013361,1764329450844,-502.99680416,0.00033939,60]
[395013362,1764329450852,-12264.4801456,0.0003394,3]
[395013363,1764329450861,-331.2975657,0.00033945,2]
[395013364,1764329450870,-12264.4801456,0.00033951,3]
[395013365,1764329450879,-12264.4801456,0.0003396,3]
[395013366,1764329450888,-49057.9205822,0.0003397,3]
[395013367,1764329450897,-73388.3074854,0.0003397,3]
[395013368,1764329450906,-250.0,0.00033973,5]
[395013369,1764329450915,-98115.8411645,0.0003398,3]
[395013370,1764329450924,-94356.3953383,0.0003398,3]
[395013371,1764329450933,-85851.3610189,0.0003399,3]
[395013372,1764329450942,-94356.3953383,0.0003399,3]
[395013373,1764329450951,-246.81207678,0.0003399,2]
[395013374,1764329450960,-188303.15659067,0.00034,2]
[395013375,1764329450970,-256.9,0.00034,14]
[395013376,1764329450979,-243.17,0.00034,30]
[395013377,1764329450988,-200.0,0.00034,120]
[395013378,1764329450998,-150.0,0.00034058,7]
[395013379,1764329451007,-150.0,0.00034058,7]
[395013380,1764329451016,-7697.7417998,0.00034102,2]
[395013381,1764329451024,-161.04922146,0.0003411,30]
[395013382,1764329451033,-223.01217592,0.0003411,30]
[395013383,1764329451043,-164.71328149,0.0003411,30]
[395013384,1764329451052,-194.3733329,0.00034114,2]
[395013385,1764329451060,-12264.4801456,0.00034132,3]
[395013386,1764329451069,-10484.0439265,0.00034132,3]
[395013387,1764329451079,-7193.0837215,0.00034142,2]
[395013388,1764329451088,-12264.4801456,0.00034225,3]
[395013389,1764329451097,-10484.0439265,0.00034225,3]
[395013390,1764329451107,-150.0,0.00034233,7]
[395013391,1764329451117,-150.0,0.00034233,7]
[395013392,1764329451127,-150.0,0.00034233,7]
[395013393,1764329451137,-12264.4801456,0.00034235,3]
[395013394,1764329451146,-10484.0439265,0.00034235,3]
[395013395,1764329451155,-12264.4801456,0.00034245,3]
[395013396,1764329451164,-10484.0439265,0.00034245,3]
[395013397,1764329451173,-300.0,0.00034247,10]
[395013398,1764329451183,-24547.9238603,0.00034255,2]
[395013399,1764329451192,-150.0,0.00034349,7]
[395013400,1764329451201,-150.0,0.00034349,7]
[395013401,1764329451210,-341.64085487,0.00034367,2]
[395013402,1764329451219,-10484.0439265,0.00034457,3]
[395013403,1764329451228,-161.04922146,0.00034466,30]
[395013404,1764329451237,-223.01217592,0.00034466,30]
[395013405,1764329451246,-164.71328149,0.00034466,30]
[395013406,1764329451255,-12264.4801456,0.00034468,3]
[395013407,1764329451264,-10484.0439265,0.00034468,3]
[395013408,1764329451273,-12264.4801456,0.00034477,3]
[395013409,1764329451283,-20968.087853,0.00034477,3]
[395013410,1764329451293,-165.882,0.00034486,39]
[395013411,1764329451302,-24528.9602911,0.00034488,3]
[395013412,1764329451311,-20968.087853,0.00034488,3]
[395013413,1764329451320,-150.0,0.00034495,7]
[395013414,1764329451329,-578.20924308,0.00034498,2]
[395013415,1764329451339,-1400.0,0.00034498,2]
[395013416,1764329451348,-500.0,0.00034498,2]
[395013417,1764329451358,-500.0,0.00034498,2]
[395013418,1764329451367,-151.0,0.00034498,2]
[395013419,1764329451376,-151.0,0.00034498,2]
[395013420,1764329451385,-521.6313094,0.00034498,2]
[395013421,1764329451395,-151.0,0.00034498,2]
[395013422,1764329451404,-666.0,0.00034498,2]
[395013423,1764329451511,-151.0,0.00034498,2]
[395013424,1764329451520,-8565.75555911,0.00034498,2]
[395013425,1764329451529,-514.84070869,0.00034498,2]
[395013426,1764329451538,-151.0,0.00034498,2]
[395013427,1764329451547,-151.0,0.00034498,2]
[395013428,1764329451558,-151.0,0.00034498,2]
[395013429,1764329451568,-151.0,0.00034498,2]
[395013430,1764329451577,-151.0,0.00034498,2]
[395013431,1764329451586,-151.0,0.00034498,2]
[395013432,1764329451595,-151.0,0.00034498,2]
[395013433,1764329451606,-151.0,0.00034498,2]
[395013434,1764329451615,-646.65982734,0.00034498,2]
[395013435,1764329451624,-151.0,0.00034498,2]
[395013436,1764329451633,-272.98667318,0.00034498,2]
[395013437,1764329451643,-500.0,0.00034498,2]
[395013438,1764329451652,-500.0,0.00034498,2]
[395013439,1764329451661,-500.0,0.00034498,2]
[395013440,1764329451670,-500.0,0.00034498,2]
[395013441,1764329451679,-250.0,0.00034498,2]
[395013442,1764329451687,-500.0,0.00034498,2]
[395013443,1764329451697,-250.0,0.00034498,2]
[395013444,1764329451706,-500.0,0.00034498,2]
[395013445,1764329451715,-250.0,0.00034498,2]
[395013446,1764329451724,-500.0,0.00034498,2]
[395013447,1764329451733,-250.0,0.00034498,2]
[395013448,1764329451742,-500.0,0.00034498,2]
[395013449,1764329451751,-250.0,0.00034498,2]
[395013450,1764329451761,-500.0,0.00034498,2]
[395013451,1764329451770,-250.0,0.00034498,2]
[395013452,1764329451779,-500.0,0.00034498,2]
[395013453,1764329451788,-250.0,0.00034498,2]
[395013454,1764329451797,-500.0,0.00034498,2]
[395013455,1764329451805,-500.0,0.00034498,2]
[395013456,1764329451814,-250.0,0.00034498,2]
[395013457,1764329451823,-500.0,0.00034498,2]
[395013458,1764329451832,-279.62732856,0.00034498,2]
[395013459,1764329451840,-500.0,0.00034498,2]
[395013460,1764329451849,-500.0,0.00034498,2]
[395013461,1764329451858,-248.71531821,0.00034498,2]
[395013462,1764329451867,-500.0,0.00034498,2]
[395013463,1764329451876,-500.0,0.00034498,2]
[395013464,1764329451885,-500.0,0.00034498,2]
[395013465,1764329451894,-500.0,0.00034498,2]
[395013466,1764329451903,-500.0,0.00034498,2]
[395013467,1764329451912,-500.0,0.00034498,2]
[395013468,1764329451921,-500.0,0.00034498,2]
[395013469,1764329451930,-500.0,0.00034498,2]
[395013470,1764329451939,-500.0,0.00034498,2]
[395013471,1764329451948,-500.0,0.00034498,2]
[395013472,1764329451958,-500.0,0.00034498,2]
[395013473,1764329451967,-500.0,0.00034498,2]
[395013474,1764329451976,-500.0,0.00034498,2]
[395013475,1764329451985,-500.0,0.00034498,2]
[395013476,1764329451994,-500.0,0.00034498,2]
[395013477,1764329452003,-250.0,0.00034498,2]
[395013478,1764329452012,-500.0,0.00034498,2]
[395013479,1764329452021,-500.0,0.00034498,2]
[395013480,1764329452030,-500.0,0.00034498,2]
[395013481,1764329452039,-250.0,0.00034498,2]
[395013482,1764329452048,-500.0,0.00034498,2]
[395013483,1764329452057,-500.0,0.00034498,2]
[395013484,1764329452066,-500.0,0.00034498,2]
[395013485,1764329452075,-268.64678523,0.00034498,2]
[395013486,1764329452084,-500.0,0.00034498,2]
[395013487,1764329452093,-500.0,0.00034498,2]
[395013488,1764329452102,-500.0,0.00034498,2]
[395013489,1764329452111,-500.0,0.00034498,2]
[395013490,1764329452120,-500.0,0.00034498,2]
[395013491,1764329452129,-500.0,0.00034498,2]
[395013492,1764329452138,-500.0,0.00034498,2]
[395013493,1764329452147,-500.0,0.00034498,2]
[395013494,1764329452157,-500.0,0.00034498,2]
[395013495,1764329452166,-500.0,0.00034498,2]
[395013496,1764329452175,-639.97413616,0.00034498,2]
[395013497,1764329452184,-500.0,0.00034498,2]
[395013498,1764329452193,-519.77806201,0.00034498,2]
[395013499,1764329452203,-500.0,0.00034498,2]
[395013500,1764329452212,-500.0,0.00034521,2]
[395013501,1764329452221,-10484.0439265,0.00034523,3]
[395013502,1764329452231,-12264.4801456,0.00034532,3]
[395013503,1764329452240,-10484.0439265,0.00034543,3]
[395013504,1764329452250,-8882.6885148,0.00034553,2]
[395013505,1764329452259,-256.30201701,0.00034582,25]
[395013506,1764329452269,-150.0,0.00034582,7]
[395013507,1764329452278,-12264.4801456,0.00034588,3]
[395013508,1764329452288,-10484.0439265,0.00034588,3]
[395013509,1764329452298,-9211.34798985,0.00034608,2]
[395013510,1764329452307,-150.0,0.0003464,7]
[395013511,1764329452316,-173.62435858,0.00034831,2]
[395013512,1764329452326,-161.04922146,0.00034849,30]
[395013513,1764329452335,-164.71328149,0.00034849,30]
[395013514,1764329452345,-1000.0,0.00034898,2]
[395013515,1764329452355,-10484.0439265,0.000349,3]
[395013516,1764329452364,-12264.4801456,0.00034911,3]
[395013517,1764329452373,-10484.0439265,0.00034911,3]
[395013518,1764329452383,-12264.4801456,0.00034931,3]
[395013519,1764329452392,-10484.0439265,0.00034931,3]
[395013520,1764329452401,-175.89691696,0.00034932,7]
[395013521,1764329452411,-234.97707552,0.00034932,7]
[395013522,1764329452420,-297.29615314,0.00034932,7]
[395013523,1764329452430,-291.69089232,0.00034932,7]
[395013524,1764329452439,-257.07589612,0.00034932,7]
[395013525,1764329452448,-150.0,0.00034932,7]
[395013526,1764329452458,-208.82500012,0.00034932,7]
[395013527,1764329452467,-255.05973415,0.00034946,2]
[395013528,1764329452476,-10484.0439265,0.00034951,3]
[395013529,1764329452485,-24528.9602911,0.0003496,3]
[395013530,1764329452494,-31452.1317794,0.0003496,3]
[395013531,1764329452503,-36793.4404367,0.0003497,3]
[395013532,1764329452512,-31452.1317794,0.0003497,3]
[395013533,1764329452521,-62904.2635589,0.0003498,3]
[395013534,1764329452530,-369.0,0.00034986,2]
[395013535,1764329452539,-41936.1757059,0.0003499,3]